[Event "Titled Tuesday Blitz February 07 Late 2023"]
[White "Yuan, Qingyu"]
[Black "Rasulov, Vugar"]
[WhiteFideId "8609772"]
[BlackFideId "13402390"]
[WhiteElo "2373"]
[BlackElo "2523"]
[Result "0-1"]
[Round "10"]
[TimeControl "180+2"]
[Date "2023.02.07"]
[WhiteClock "0:00:03"]
[BlackClock "0:00:26"]

1. e4 {[%clk 0:03:00]}  e5 {[%clk 0:02:59]} 2. Nf3 {[%clk 0:03:00]}  Nc6 {[%clk 0:03:00]} 3. Bb5 {[%clk 0:03:00]}  Nf6 {[%clk 0:03:00]} 4. d3 {[%clk 0:03:00]}  Bc5 {[%clk 0:02:59]} 5. Bxc6 {[%clk 0:03:01]}  dxc6 {[%clk 0:02:59]} 6. Nbd2 {[%clk 0:03:02]}  Be6 {[%clk 0:03:00]} 7. O-O {[%clk 0:02:56]}  Nd7 {[%clk 0:02:59]} 8. Nb3 {[%clk 0:02:56]}  Bd6 {[%clk 0:02:57]} 9. Na5 {[%clk 0:02:46]}  Rb8 {[%clk 0:02:52]} 10. Ng5 {[%clk 0:02:45]}  Qe7 {[%clk 0:02:51]} 11. Be3 {[%clk 0:02:32]}  O-O {[%clk 0:02:47]} 12. Qh5 {[%clk 0:02:22]}  Nf6 {[%clk 0:02:41]} 13. Qe2 {[%clk 0:02:18]}  Bg4 {[%clk 0:02:39]} 14. f3 {[%clk 0:02:12]}  Bd7 {[%clk 0:02:39]} 15. g4 {[%clk 0:01:59]}  h6 {[%clk 0:02:30]} 16. Nh3 {[%clk 0:02:00]}  h5 {[%clk 0:02:31]} 17. Nf2 {[%clk 0:01:52]}  hxg4 {[%clk 0:02:29]} 18. fxg4 {[%clk 0:01:52]}  Nh7 {[%clk 0:02:27]} 19. Kh1 {[%clk 0:01:45]}  Qh4 {[%clk 0:02:24]} 20. Rg1 {[%clk 0:01:42]}  Ng5 {[%clk 0:02:20]} 21. Nc4 {[%clk 0:01:36]}  g6 {[%clk 0:02:11]} 22. Bxa7 {[%clk 0:01:21]}  Ra8 {[%clk 0:02:11]} 23. Be3 {[%clk 0:01:21]}  Kg7 {[%clk 0:02:11]} 24. Rg2 {[%clk 0:01:12]}  Rh8 {[%clk 0:02:10]} 25. d4 {[%clk 0:01:03]}  Ne6 {[%clk 0:01:54]} 26. dxe5 {[%clk 0:01:00]}  Be7 {[%clk 0:01:55]} 27. Rd1 {[%clk 0:00:53]}  Bc8 {[%clk 0:01:53]} 28. a3 {[%clk 0:00:53]}  b6 {[%clk 0:01:51]} 29. Nd2 {[%clk 0:00:52]}  Ba6 {[%clk 0:01:44]} 30. Qe1 {[%clk 0:00:53]}  Ng5 {[%clk 0:01:37]} 31. e6 {[%clk 0:00:34]}  Nxe6 {[%clk 0:01:32]} 32. Nf3 {[%clk 0:00:32]}  Qf6 {[%clk 0:01:32]} 33. Nd4 {[%clk 0:00:30]}  Kg8 {[%clk 0:01:12]} 34. Nxc6 {[%clk 0:00:24]}  Bd6 {[%clk 0:01:01]} 35. e5 {[%clk 0:00:21]}  Bxe5 {[%clk 0:01:01]} 36. Ne4 {[%clk 0:00:14]}  Qf3 {[%clk 0:00:57]} 37. Nxe5 {[%clk 0:00:12]}  Qxe4 {[%clk 0:00:58]} 38. Bg1 {[%clk 0:00:07]}  Bb7 {[%clk 0:00:55]} 39. Qxe4 {[%clk 0:00:03]}  Bxe4 {[%clk 0:00:56]} 40. Rd2 {[%clk 0:00:04]}  Nf4 {[%clk 0:00:53]} 41. g5 {[%clk 0:00:01]}  Rh5 {[%clk 0:00:46]} 42. Ng4 {[%clk 0:00:01]}  Bxg2+ {[%clk 0:00:38]} 43. Rxg2 {[%clk 0:00:02]}  Nxg2 {[%clk 0:00:39]} 44. Nf6+ {[%clk 0:00:02]}  Kg7 {[%clk 0:00:39]} 45. Nxh5+ {[%clk 0:00:03]}  gxh5 {[%clk 0:00:40]} 46. Kxg2 {[%clk 0:00:03]}  Kg6 {[%clk 0:00:38]} 47. Be3 {[%clk 0:00:03]}  Kf5 {[%clk 0:00:38]} 48. Kf3 {[%clk 0:00:04]}  Ra4 {[%clk 0:00:38]} 49. h3 {[%clk 0:00:04]}  Rh4 {[%clk 0:00:34]} 50. Kg3 {[%clk 0:00:03]}  Rc4 {[%clk 0:00:34]} 51. c3 {[%clk 0:00:03]}  Ke4 {[%clk 0:00:35]} 52. Bd4 {[%clk 0:00:02]}  Kd3 {[%clk 0:00:31]} 53. Bf6 {[%clk 0:00:02]}  Kc2 {[%clk 0:00:27]} 54. b4 {[%clk 0:00:02]}  Kb3 {[%clk 0:00:27]} 55. Be5 {[%clk 0:00:02]}  Kxa3 {[%clk 0:00:27]} 56. Bf6 {[%clk 0:00:02]}  Kb3 {[%clk 0:00:27]} 57. Be5 {[%clk 0:00:02]}  c5 {[%clk 0:00:28]} 58. bxc5 {[%clk 0:00:02]}  bxc5 {[%clk 0:00:28]} 59. Bf6 {[%clk 0:00:03]}  Re4 {[%clk 0:00:29]} 60. Kf3 {[%clk 0:00:02]}  Ra4 {[%clk 0:00:24]} 61. Kg3 {[%clk 0:00:02]}  Kc2 {[%clk 0:00:24]} 62. Kf3 {[%clk 0:00:02]}  Kd3 {[%clk 0:00:25]} 63. Kg3 {[%clk 0:00:02]}  Ke3 {[%clk 0:00:25]} 64. Be7 {[%clk 0:00:03]}  h4+ {[%clk 0:00:25]} 65. Kg2 {[%clk 0:00:03]}  Ra2+ {[%clk 0:00:25]} 66. Kg1 {[%clk 0:00:03]}  c4 {[%clk 0:00:26]} 67. Bf6 {[%clk 0:00:03]}  Kf3 {[%clk 0:00:26]} 68. Bg7 {[%clk 0:00:02]}  Kg3 {[%clk 0:00:26]} 69. Kf1 {[%clk 0:00:02]}  Kxh3 {[%clk 0:00:26]} 70. g6 {[%clk 0:00:03]}  fxg6 {[%clk 0:00:26]} 0-1


[Site "https://www.chess.com"]

[Event "Titled Tuesday Blitz February 07 Late 2023"]
[White "Perske, Thore"]
[Black "Makridis, Dimitrios"]
[WhiteFideId "12902195"]
[BlackFideId "25864475"]
[WhiteElo "2448"]
[BlackElo "2356"]
[Result "1-0"]
[Round "10"]
[TimeControl "180+2"]
[Date "2023.02.07"]
[WhiteClock "0:00:03"]
[BlackClock "0:00:04"]

1. e4 {[%clk 0:03:00]}  c5 {[%clk 0:02:59]} 2. Nf3 {[%clk 0:03:00]}  Nf6 {[%clk 0:02:59]} 3. d3 {[%clk 0:02:59]}  d5 {[%clk 0:02:59]} 4. Nbd2 {[%clk 0:02:59]}  Nc6 {[%clk 0:02:59]} 5. g3 {[%clk 0:02:59]}  g6 {[%clk 0:02:59]} 6. Bg2 {[%clk 0:02:59]}  Bg7 {[%clk 0:02:59]} 7. O-O {[%clk 0:03:00]}  O-O {[%clk 0:03:00]} 8. Re1 {[%clk 0:03:00]}  e6 {[%clk 0:02:55]} 9. c3 {[%clk 0:02:58]}  b5 {[%clk 0:02:55]} 10. e5 {[%clk 0:02:29]}  Nd7 {[%clk 0:02:54]} 11. d4 {[%clk 0:02:29]}  b4 {[%clk 0:02:53]} 12. h4 {[%clk 0:02:28]}  a5 {[%clk 0:02:51]} 13. h5 {[%clk 0:02:27]}  a4 {[%clk 0:02:51]} 14. a3 {[%clk 0:02:23]}  bxc3 {[%clk 0:02:50]} 15. bxc3 {[%clk 0:02:23]}  Qa5 {[%clk 0:02:51]} 16. Re3 {[%clk 0:02:11]}  Bh6 {[%clk 0:02:49]} 17. Qe1 {[%clk 0:01:59]}  f6 {[%clk 0:02:33]} 18. hxg6 {[%clk 0:01:56]}  hxg6 {[%clk 0:02:32]} 19. exf6 {[%clk 0:01:37]}  Bxe3 {[%clk 0:02:32]} 20. Qxe3 {[%clk 0:01:38]}  Nxf6 {[%clk 0:02:32]} 21. dxc5 {[%clk 0:01:18]}  Qc7 {[%clk 0:02:27]} 22. Rb1 {[%clk 0:01:09]}  Qg7 {[%clk 0:02:19]} 23. Rb6 {[%clk 0:01:07]}  Ne7 {[%clk 0:02:12]} 24. Bb2 {[%clk 0:01:00]}  Nf5 {[%clk 0:02:12]} 25. Qe2 {[%clk 0:00:52]}  Nh5 {[%clk 0:00:31]} 26. c4 {[%clk 0:00:46]}  d4 {[%clk 0:00:29]} 27. Qe4 {[%clk 0:00:33]}  Ra7 {[%clk 0:00:22]} 28. Nxd4 {[%clk 0:00:28]}  Rd8 {[%clk 0:00:14]} 29. Nxe6 {[%clk 0:00:18]}  Bxe6 {[%clk 0:00:03]} 30. Qxe6+ {[%clk 0:00:19]}  Qf7 {[%clk 0:00:04]} 31. Bd5 {[%clk 0:00:14]}  Qxe6 {[%clk 0:00:04]} 32. Rxe6 {[%clk 0:00:13]}  Kh7 {[%clk 0:00:04]} 33. Ne4 {[%clk 0:00:11]}  Nhg7 {[%clk 0:00:04]} 34. Rb6 {[%clk 0:00:09]}  Re7 {[%clk 0:00:03]} 35. Bf6 {[%clk 0:00:08]}  Rxd5 {[%clk 0:00:04]} 36. Ng5+ {[%clk 0:00:04]}  Kh6 {[%clk 0:00:04]} 37. cxd5 {[%clk 0:00:05]}  Re1+ {[%clk 0:00:04]} 38. Kg2 {[%clk 0:00:05]}  Nh5 {[%clk 0:00:05]} 39. Nf7+ {[%clk 0:00:05]}  Kh7 {[%clk 0:00:06]} 40. Bc3 {[%clk 0:00:05]}  Rd1 {[%clk 0:00:06]} 41. d6 {[%clk 0:00:04]}  Kg8 {[%clk 0:00:06]} 42. Rb7 {[%clk 0:00:04]}  Nhg7 {[%clk 0:00:05]} 43. Bxg7 {[%clk 0:00:03]}  Kxg7 {[%clk 0:00:05]} 44. Ne5+ {[%clk 0:00:04]}  Kf6 {[%clk 0:00:05]} 45. Nf3 {[%clk 0:00:04]}  Rc1 {[%clk 0:00:04]} 46. Rc7 {[%clk 0:00:04]}  Ke6 {[%clk 0:00:04]} 47. Ng5+ {[%clk 0:00:04]}  Kd5 {[%clk 0:00:04]} 48. Nf7 {[%clk 0:00:04]}  Ke6 {[%clk 0:00:04]} 49. d7 {[%clk 0:00:03]}  Rc2 {[%clk 0:00:04]} 50. d8=Q {[%clk 0:00:03]}  Ne3+ {[%clk 0:00:05]} 51. Kf3 {[%clk 0:00:03]}  Nf5 {[%clk 0:00:05]} 52. Rc6+ {[%clk 0:00:03]}  Kxf7 {[%clk 0:00:05]} 53. Qd7+ {[%clk 0:00:03]}  Kg8 {[%clk 0:00:04]} 54. Rxg6+ {[%clk 0:00:03]}  Kh8 {[%clk 0:00:04]} 55. Qxf5 {[%clk 0:00:02]}  Rxf2+ {[%clk 0:00:04]} 56. Kxf2 {[%clk 0:00:02]}  Kh7 {[%clk 0:00:04]} 57. Qh5# {[%clk 0:00:03]} 1-0


[Site "https://www.chess.com"]

[Event "Titled Tuesday Blitz February 07 Late 2023"]
[White "Kalogeris, Ioannis"]
[Black "Urazayev, Arystanbek"]
[WhiteFideId "4239563"]
[BlackFideId "13709810"]
[WhiteElo "2423"]
[BlackElo "2460"]
[Result "1-0"]
[Round "10"]
[TimeControl "180+2"]
[Date "2023.02.07"]
[WhiteClock "0:00:07"]
[BlackClock "0:00:03"]

1. e4 {[%clk 0:03:00]}  c5 {[%clk 0:02:55]} 2. Nf3 {[%clk 0:03:00]}  d6 {[%clk 0:02:55]} 3. d4 {[%clk 0:03:00]}  cxd4 {[%clk 0:02:56]} 4. Nxd4 {[%clk 0:03:01]}  Nf6 {[%clk 0:02:57]} 5. Nc3 {[%clk 0:03:01]}  Nc6 {[%clk 0:02:57]} 6. Bg5 {[%clk 0:02:59]}  e6 {[%clk 0:02:58]} 7. Qd2 {[%clk 0:02:57]}  a6 {[%clk 0:02:58]} 8. O-O-O {[%clk 0:02:56]}  Be7 {[%clk 0:02:58]} 9. Nxc6 {[%clk 0:02:48]}  bxc6 {[%clk 0:02:57]} 10. e5 {[%clk 0:02:21]}  dxe5 {[%clk 0:02:46]} 11. Qxd8+ {[%clk 0:02:07]}  Bxd8 {[%clk 0:02:47]} 12. Ne4 {[%clk 0:02:06]}  O-O {[%clk 0:02:29]} 13. Rxd8 {[%clk 0:02:01]}  Rxd8 {[%clk 0:02:27]} 14. Nxf6+ {[%clk 0:02:02]}  gxf6 {[%clk 0:02:27]} 15. Bxf6 {[%clk 0:02:03]}  Rd4 {[%clk 0:02:15]} 16. Bxe5 {[%clk 0:01:48]}  Re4 {[%clk 0:02:13]} 17. Bc3 {[%clk 0:01:46]}  a5 {[%clk 0:02:02]} 18. Bd3 {[%clk 0:01:43]}  Rf4 {[%clk 0:02:02]} 19. f3 {[%clk 0:01:41]}  Rh4 {[%clk 0:01:25]} 20. h3 {[%clk 0:01:27]}  f5 {[%clk 0:01:07]} 21. Be5 {[%clk 0:01:16]}  Ba6 {[%clk 0:01:04]} 22. Rd1 {[%clk 0:01:16]}  Bxd3 {[%clk 0:01:02]} 23. Rxd3 {[%clk 0:01:17]}  Rh6 {[%clk 0:00:59]} 24. Rd6 {[%clk 0:01:02]}  Rg6 {[%clk 0:00:58]} 25. g3 {[%clk 0:01:02]}  Rc8 {[%clk 0:00:51]} 26. Kd2 {[%clk 0:00:59]}  Kf8 {[%clk 0:00:32]} 27. Rd7 {[%clk 0:00:58]}  Ke8 {[%clk 0:00:32]} 28. Rxh7 {[%clk 0:00:56]}  Rd8+ {[%clk 0:00:32]} 29. Ke3 {[%clk 0:00:50]}  Rd5 {[%clk 0:00:33]} 30. Kf4 {[%clk 0:00:49]}  Rd2 {[%clk 0:00:32]} 31. c4 {[%clk 0:00:47]}  Rg2 {[%clk 0:00:29]} 32. g4 {[%clk 0:00:46]}  fxg4 {[%clk 0:00:30]} 33. hxg4 {[%clk 0:00:46]}  Rg8 {[%clk 0:00:21]} 34. Bd6 {[%clk 0:00:44]}  Rxb2 {[%clk 0:00:16]} 35. Re7+ {[%clk 0:00:41]}  Kd8 {[%clk 0:00:17]} 36. Ra7 {[%clk 0:00:41]}  Rg6 {[%clk 0:00:16]} 37. a3 {[%clk 0:00:28]}  Rc2 {[%clk 0:00:15]} 38. c5 {[%clk 0:00:22]}  Rf6+ {[%clk 0:00:15]} 39. Kg3 {[%clk 0:00:20]}  Rg6 {[%clk 0:00:09]} 40. Ra8+ {[%clk 0:00:19]}  Kd7 {[%clk 0:00:09]} 41. Ra7+ {[%clk 0:00:20]}  Kc8 {[%clk 0:00:09]} 42. Rc7+ {[%clk 0:00:20]}  Kd8 {[%clk 0:00:10]} 43. Rxc6 {[%clk 0:00:20]}  e5 {[%clk 0:00:10]} 44. Bc7+ {[%clk 0:00:17]}  Kd7 {[%clk 0:00:11]} 45. Rxg6 {[%clk 0:00:17]}  Kxc7 {[%clk 0:00:11]} 46. c6 {[%clk 0:00:14]}  Rc3 {[%clk 0:00:12]} 47. Re6 {[%clk 0:00:10]}  Rxa3 {[%clk 0:00:12]} 48. g5 {[%clk 0:00:10]}  Ra1 {[%clk 0:00:12]} 49. Kg4 {[%clk 0:00:10]}  a4 {[%clk 0:00:12]} 50. Rxe5 {[%clk 0:00:09]}  Kxc6 {[%clk 0:00:10]} 51. Ra5 {[%clk 0:00:09]}  Kb6 {[%clk 0:00:10]} 52. Ra8 {[%clk 0:00:09]}  Kb7 {[%clk 0:00:11]} 53. Re8 {[%clk 0:00:09]}  a3 {[%clk 0:00:11]} 54. Kf4 {[%clk 0:00:07]}  Kc6 {[%clk 0:00:09]} 55. Re3 {[%clk 0:00:05]}  Kd5 {[%clk 0:00:08]} 56. Kf5 {[%clk 0:00:06]}  Kd4 {[%clk 0:00:08]} 57. Re4+ {[%clk 0:00:06]}  Kd5 {[%clk 0:00:08]} 58. f4 {[%clk 0:00:06]}  Kc5 {[%clk 0:00:05]} 59. Re5+ {[%clk 0:00:07]}  Kb4 {[%clk 0:00:05]} 60. g6 {[%clk 0:00:07]}  a2 {[%clk 0:00:06]} 61. Re4+ {[%clk 0:00:07]}  Kb5 {[%clk 0:00:06]} 62. Re2 {[%clk 0:00:08]}  Kc4 {[%clk 0:00:05]} 63. Rf2 {[%clk 0:00:08]}  Kd4 {[%clk 0:00:04]} 64. Rg2 {[%clk 0:00:08]}  Ke3 {[%clk 0:00:05]} 65. g7 {[%clk 0:00:08]}  Rf1 {[%clk 0:00:03]} 66. Rxa2 {[%clk 0:00:08]}  Rxf4+ {[%clk 0:00:02]} 67. Kg5 {[%clk 0:00:08]}  Rf1 {[%clk 0:00:02]} 68. Rg2 {[%clk 0:00:08]}  Kf3 {[%clk 0:00:03]} 69. Rg4 {[%clk 0:00:07]}  Rc1 {[%clk 0:00:01]} 70. g8=Q {[%clk 0:00:07]}  Rc5+ {[%clk 0:00:02]} 71. Kh4 {[%clk 0:00:07]}  Rf5 {[%clk 0:00:03]} 72. Qb3+ {[%clk 0:00:06]}  Kf2 {[%clk 0:00:03]} 73. Qc2+ {[%clk 0:00:07]} 1-0


[Site "https://www.chess.com"]

[Event "Titled Tuesday Blitz February 07 Late 2023"]
[White "Harvey, Marcus R"]
[Black "Martinez Ramirez, Lennis"]
[WhiteFideId "400092"]
[BlackFideId "3509079"]
[WhiteElo "2462"]
[BlackElo "2426"]
[Result "1-0"]
[Round "10"]
[TimeControl "180+2"]
[Date "2023.02.07"]
[WhiteClock "0:00:23"]
[BlackClock "0:00:03"]

1. d4 {[%clk 0:02:59]}  e6 {[%clk 0:02:59]} 2. Nf3 {[%clk 0:02:57]}  b6 {[%clk 0:02:58]} 3. e4 {[%clk 0:02:54]}  d5 {[%clk 0:02:58]} 4. e5 {[%clk 0:02:52]}  Ba6 {[%clk 0:02:58]} 5. Bxa6 {[%clk 0:02:52]}  Nxa6 {[%clk 0:02:59]} 6. c4 {[%clk 0:02:51]}  Qd7 {[%clk 0:02:50]} 7. cxd5 {[%clk 0:02:50]}  exd5 {[%clk 0:02:37]} 8. O-O {[%clk 0:02:40]}  O-O-O {[%clk 0:02:28]} 9. a4 {[%clk 0:02:36]}  c6 {[%clk 0:02:27]} 10. Bf4 {[%clk 0:01:52]}  Ne7 {[%clk 0:02:24]} 11. Nc3 {[%clk 0:01:40]}  Ng6 {[%clk 0:02:24]} 12. Bg3 {[%clk 0:01:40]}  Bb4 {[%clk 0:02:24]} 13. Qd3 {[%clk 0:01:40]}  Kb7 {[%clk 0:02:23]} 14. Na2 {[%clk 0:01:39]}  Nf8 {[%clk 0:02:20]} 15. Ne1 {[%clk 0:01:35]}  f5 {[%clk 0:02:15]} 16. Nc2 {[%clk 0:01:33]}  Be7 {[%clk 0:02:04]} 17. b4 {[%clk 0:01:33]}  Nc7 {[%clk 0:02:04]} 18. b5 {[%clk 0:01:29]}  cxb5 {[%clk 0:02:02]} 19. axb5 {[%clk 0:01:29]}  g6 {[%clk 0:01:57]} 20. Nc3 {[%clk 0:01:27]}  Nfe6 {[%clk 0:01:56]} 21. Ra4 {[%clk 0:01:27]}  Ra8 {[%clk 0:01:55]} 22. f4 {[%clk 0:01:22]}  Rhc8 {[%clk 0:01:53]} 23. Rfa1 {[%clk 0:01:21]}  Kb8 {[%clk 0:01:41]} 24. Ne3 {[%clk 0:01:19]}  g5 {[%clk 0:01:35]} 25. Nxf5 {[%clk 0:01:17]}  gxf4 {[%clk 0:01:34]} 26. Bf2 {[%clk 0:01:17]}  Ng5 {[%clk 0:01:26]} 27. Bh4 {[%clk 0:01:08]}  h6 {[%clk 0:01:10]} 28. Kh1 {[%clk 0:00:57]}  Nce6 {[%clk 0:01:07]} 29. Nxd5 {[%clk 0:00:45]}  Bd8 {[%clk 0:00:21]} 30. Nd6 {[%clk 0:00:45]}  Bc7 {[%clk 0:00:12]} 31. Nf6 {[%clk 0:00:39]}  Qd8 {[%clk 0:00:10]} 32. Nxc8 {[%clk 0:00:31]}  Qxc8 {[%clk 0:00:10]} 33. Bxg5 {[%clk 0:00:29]}  hxg5 {[%clk 0:00:10]} 34. Qf5 {[%clk 0:00:24]}  Kb7 {[%clk 0:00:03]} 35. Rc1 {[%clk 0:00:23]} 1-0


[Site "https://www.chess.com"]

[Event "Titled Tuesday Blitz February 07 Late 2023"]
[White "Timmermans, Mark"]
[Black "Goroshkov, Maksym"]
[WhiteFideId "1026399"]
[BlackFideId "14142716"]
[WhiteElo "2392"]
[BlackElo "2287"]
[Result "0-1"]
[Round "10"]
[TimeControl "180+2"]
[Date "2023.02.07"]
[WhiteClock "0:01:02"]
[BlackClock "0:01:56"]

1. e4 {[%clk 0:02:59]}  e5 {[%clk 0:03:00]} 2. Nf3 {[%clk 0:02:59]}  d6 {[%clk 0:03:01]} 3. d4 {[%clk 0:02:59]}  Bg4 {[%clk 0:03:02]} 4. dxe5 {[%clk 0:02:57]}  Nd7 {[%clk 0:03:02]} 5. exd6 {[%clk 0:02:56]}  Bxd6 {[%clk 0:03:03]} 6. Bd3 {[%clk 0:02:50]}  Ngf6 {[%clk 0:03:03]} 7. h3 {[%clk 0:02:50]}  Bh5 {[%clk 0:03:03]} 8. Bg5 {[%clk 0:02:47]}  Qe7 {[%clk 0:03:03]} 9. Nbd2 {[%clk 0:02:46]}  h6 {[%clk 0:03:02]} 10. Bh4 {[%clk 0:02:40]}  g5 {[%clk 0:03:01]} 11. Bg3 {[%clk 0:02:40]}  Bxg3 {[%clk 0:03:02]} 12. fxg3 {[%clk 0:02:41]}  O-O-O {[%clk 0:03:02]} 13. g4 {[%clk 0:02:34]}  Bg6 {[%clk 0:03:01]} 14. O-O {[%clk 0:02:34]}  Nc5 {[%clk 0:02:58]} 15. Qe2 {[%clk 0:02:29]}  h5 {[%clk 0:02:50]} 16. gxh5 {[%clk 0:02:14]}  Nxh5 {[%clk 0:02:50]} 17. Qe3 {[%clk 0:02:09]}  g4 {[%clk 0:02:20]} 18. hxg4 {[%clk 0:01:59]}  Ng3 {[%clk 0:02:20]} 19. Rfe1 {[%clk 0:01:48]}  Ne6 {[%clk 0:02:12]} 20. Qxa7 {[%clk 0:01:15]}  Nf4 {[%clk 0:01:59]} 21. Qa8+ {[%clk 0:01:11]}  Kd7 {[%clk 0:01:59]} 22. Bb5+ {[%clk 0:01:08]}  Ke6 {[%clk 0:01:57]} 23. Qxb7 {[%clk 0:01:02]}  Qc5+ {[%clk 0:01:56]} 0-1


[Site "https://www.chess.com"]

[Event "Titled Tuesday Blitz February 07 Late 2023"]
[White "Bilan, Danila"]
[Black "Salimova, Nurgyul"]
[WhiteFideId "24161918"]
[BlackFideId "2915138"]
[WhiteElo "2303"]
[BlackElo "2391"]
[Result "0-1"]
[Round "10"]
[TimeControl "180+2"]
[Date "2023.02.07"]
[WhiteClock "0:01:07"]
[BlackClock "0:01:32"]

1. d4 {[%clk 0:03:00]}  Nf6 {[%clk 0:03:00]} 2. Nf3 {[%clk 0:03:00]}  d5 {[%clk 0:03:00]} 3. c4 {[%clk 0:03:00]}  e6 {[%clk 0:02:59]} 4. Nc3 {[%clk 0:03:00]}  c6 {[%clk 0:02:59]} 5. Bg5 {[%clk 0:02:59]}  dxc4 {[%clk 0:02:59]} 6. e4 {[%clk 0:02:59]}  b5 {[%clk 0:03:00]} 7. e5 {[%clk 0:03:00]}  h6 {[%clk 0:03:01]} 8. Bh4 {[%clk 0:03:00]}  g5 {[%clk 0:03:01]} 9. Nxg5 {[%clk 0:03:00]}  hxg5 {[%clk 0:03:02]} 10. Bxg5 {[%clk 0:03:01]}  Be7 {[%clk 0:03:02]} 11. exf6 {[%clk 0:02:57]}  Bxf6 {[%clk 0:03:03]} 12. Bxf6 {[%clk 0:02:49]}  Qxf6 {[%clk 0:03:04]} 13. g3 {[%clk 0:02:50]}  Na6 {[%clk 0:03:04]} 14. Bg2 {[%clk 0:02:47]}  Bb7 {[%clk 0:03:04]} 15. Nxb5 {[%clk 0:02:36]}  O-O-O {[%clk 0:02:58]} 16. Nxa7+ {[%clk 0:02:18]}  Kc7 {[%clk 0:02:57]} 17. Qa4 {[%clk 0:02:18]}  Qxd4 {[%clk 0:02:38]} 18. Nxc6 {[%clk 0:01:49]}  Qd2+ {[%clk 0:02:09]} 19. Kf1 {[%clk 0:01:48]}  Nc5 {[%clk 0:01:53]} 20. Nxd8 {[%clk 0:01:14]}  Bxg2+ {[%clk 0:01:43]} 21. Kxg2 {[%clk 0:01:12]}  Qd5+ {[%clk 0:01:34]} 22. Kg1 {[%clk 0:01:11]}  Nxa4 {[%clk 0:01:34]} 23. Nxf7 {[%clk 0:01:09]}  Rf8 {[%clk 0:01:32]} 24. Ng5 {[%clk 0:01:07]} 0-1


[Site "https://www.chess.com"]

[Event "Titled Tuesday Blitz February 07 Late 2023"]
[White "Cardoso Cardoso, Jose Gabriel"]
[Black "Becerra, Juan David"]
[WhiteFideId "4430492"]
[BlackFideId "4404998"]
[WhiteElo "2492"]
[BlackElo "2382"]
[Result "1-0"]
[Round "10"]
[TimeControl "180+2"]
[Date "2023.02.07"]
[WhiteClock "0:00:09"]
[BlackClock "0:00:02"]

1. c4 {[%clk 0:03:00]}  e5 {[%clk 0:02:50]} 2. g3 {[%clk 0:03:01]}  Nf6 {[%clk 0:02:49]} 3. Bg2 {[%clk 0:03:01]}  c6 {[%clk 0:02:47]} 4. Nf3 {[%clk 0:03:00]}  d6 {[%clk 0:02:01]} 5. Nc3 {[%clk 0:02:59]}  Be7 {[%clk 0:02:01]} 6. d4 {[%clk 0:02:59]}  Nbd7 {[%clk 0:02:01]} 7. O-O {[%clk 0:02:56]}  O-O {[%clk 0:02:01]} 8. e4 {[%clk 0:02:57]}  Re8 {[%clk 0:01:57]} 9. Re1 {[%clk 0:02:55]}  Bf8 {[%clk 0:01:55]} 10. h3 {[%clk 0:02:53]}  a5 {[%clk 0:01:55]} 11. Be3 {[%clk 0:02:46]}  Qc7 {[%clk 0:01:52]} 12. Qc2 {[%clk 0:02:40]}  g6 {[%clk 0:01:51]} 13. Rad1 {[%clk 0:02:39]}  Bg7 {[%clk 0:01:52]} 14. Qd2 {[%clk 0:02:35]}  a4 {[%clk 0:01:43]} 15. dxe5 {[%clk 0:02:32]}  Nxe5 {[%clk 0:01:43]} 16. Nxe5 {[%clk 0:02:22]}  dxe5 {[%clk 0:01:42]} 17. Qc2 {[%clk 0:02:20]}  Qa5 {[%clk 0:01:37]} 18. Bd2 {[%clk 0:02:11]}  Qa6 {[%clk 0:01:33]} 19. Bf1 {[%clk 0:02:06]}  Be6 {[%clk 0:01:33]} 20. Nd5 {[%clk 0:02:02]}  Rac8 {[%clk 0:00:53]} 21. Nxf6+ {[%clk 0:02:01]}  Bxf6 {[%clk 0:00:54]} 22. Be3 {[%clk 0:02:00]}  c5 {[%clk 0:00:48]} 23. Rd2 {[%clk 0:01:55]}  Qc6 {[%clk 0:00:46]} 24. Red1 {[%clk 0:01:54]}  Red8 {[%clk 0:00:46]} 25. Kh2 {[%clk 0:01:32]}  Rxd2 {[%clk 0:00:46]} 26. Rxd2 {[%clk 0:01:33]}  Rd8 {[%clk 0:00:45]} 27. Rxd8+ {[%clk 0:01:28]}  Bxd8 {[%clk 0:00:46]} 28. Qd3 {[%clk 0:01:28]}  Be7 {[%clk 0:00:44]} 29. h4 {[%clk 0:01:26]}  h5 {[%clk 0:00:41]} 30. Bh3 {[%clk 0:01:25]}  Bxh3 {[%clk 0:00:23]} 31. Kxh3 {[%clk 0:01:26]}  Qe6+ {[%clk 0:00:20]} 32. Kg2 {[%clk 0:01:26]}  Qd6 {[%clk 0:00:20]} 33. Qxd6 {[%clk 0:00:56]}  Bxd6 {[%clk 0:00:21]} 34. f4 {[%clk 0:00:57]}  exf4 {[%clk 0:00:19]} 35. gxf4 {[%clk 0:00:57]}  Kf8 {[%clk 0:00:18]} 36. Kf3 {[%clk 0:00:55]}  f5 {[%clk 0:00:18]} 37. e5 {[%clk 0:00:49]}  Be7 {[%clk 0:00:18]} 38. Bf2 {[%clk 0:00:50]}  Ke8 {[%clk 0:00:18]} 39. Ke2 {[%clk 0:00:48]}  Kd7 {[%clk 0:00:18]} 40. Kd3 {[%clk 0:00:48]}  Kc6 {[%clk 0:00:18]} 41. Kc3 {[%clk 0:00:46]}  b5 {[%clk 0:00:09]} 42. cxb5+ {[%clk 0:00:43]}  Kxb5 {[%clk 0:00:10]} 43. b3 {[%clk 0:00:43]}  axb3 {[%clk 0:00:10]} 44. Kxb3 {[%clk 0:00:43]}  Bd8 {[%clk 0:00:06]} 45. a4+ {[%clk 0:00:43]}  Kc6 {[%clk 0:00:06]} 46. Kc4 {[%clk 0:00:42]}  Be7 {[%clk 0:00:02]} 47. a5 {[%clk 0:00:40]}  Bd8 {[%clk 0:00:02]} 48. a6 {[%clk 0:00:38]}  Be7 {[%clk 0:00:03]} 49. a7 {[%clk 0:00:26]}  Kb7 {[%clk 0:00:03]} 50. Bxc5 {[%clk 0:00:27]}  Bxh4 {[%clk 0:00:03]} 51. e6 {[%clk 0:00:27]}  Bf6 {[%clk 0:00:02]} 52. e7 {[%clk 0:00:26]}  Bxe7 {[%clk 0:00:02]} 53. Bxe7 {[%clk 0:00:27]}  Kxa7 {[%clk 0:00:02]} 54. Kd5 {[%clk 0:00:28]}  Kb7 {[%clk 0:00:03]} 55. Ke6 {[%clk 0:00:28]}  Kc6 {[%clk 0:00:03]} 56. Kf7 {[%clk 0:00:28]}  Kd5 {[%clk 0:00:03]} 57. Kxg6 {[%clk 0:00:21]}  Ke4 {[%clk 0:00:04]} 58. Kg5 {[%clk 0:00:11]}  h4 {[%clk 0:00:04]} 59. Bc5 {[%clk 0:00:09]}  h3 {[%clk 0:00:04]} 60. Bg1 {[%clk 0:00:09]}  Kf3 {[%clk 0:00:02]} 61. Kxf5 {[%clk 0:00:09]}  Kg2 {[%clk 0:00:02]} 62. Kg4 {[%clk 0:00:09]} 1-0


[Site "https://www.chess.com"]